bitfinex/quotes_SOLUSD_20250112
["timestamp","ask_amount","ask_price","bid_price","bid_amount"]
[1736683918610,20.0,186.98,186.87,145.4]
[1736683921236,20.0,186.98,186.88,0.80237364]
[1736683922713,20.0,186.98,186.87,145.4]
[1736683923115,43.776884,186.97,186.87,145.4]
[1736683923317,43.776884,186.97,186.87,82.6]
[1736683923527,23.776884,186.95,186.87,82.6]
[1736683923828,1.5897,186.95,186.87,82.6]
[1736683924450,25.366584,186.95,186.87,82.6]
[1736683924650,20.0,186.92,186.87,82.6]
[1736683925340,1.5897,186.95,186.87,82.6]
[1736683925940,20.0,186.96,186.87,82.6]
[1736683927341,20.0,186.98,186.88,0.80234813]
[1736683927942,1.521,186.99,186.88,152.24934813]
[1736683928131,1.521,186.99,186.88,151.447]
[1736683928531,23.776884,187.03,186.88,151.447]
[1736683929153,1.521,187.04,186.89,23.776884]
[1736683929326,1.521,187.04,186.9,0.80217662]
[1736683929529,20.0,187.02,186.9,5.32217662]
[1736683929730,1.521,187.04,186.91,23.776884]
[1736683929948,1.521,187.04,186.92,146.20205658]
[1736683930164,1.521,187.04,186.92,145.4]
[1736683931046,23.776884,187.02,186.92,145.4]
[1736683931351,20.0,186.99,186.92,82.6]
[1736683934134,21.521,187.04,186.92,145.4]
[1736683934461,1.521,187.04,186.92,145.4]
[1736683934643,1.521,187.04,186.93,0.80211354]
[1736683935147,1.521,187.04,186.93,146.20211354]
[1736683935354,1.521,187.04,186.93,145.4]
[1736683939061,1.521,187.04,186.94,0.80208574]
[1736683940064,1.521,187.04,186.94,1.51638574]
[1736683940260,1.521,187.04,186.94,0.7143]
[1736683943575,1.521,187.04,186.93,145.4]
[1736683943772,20.0,187.0,186.93,145.4]
[1736683945287,20.0,186.96,186.9,82.6]
[1736683952455,81.9,187.03,186.91,0.80229983]
[1736683952657,23.776884,187.02,186.91,0.80223246]
[1736683952858,20.0,186.99,186.91,146.20223246]
[1736683953071,20.0,186.99,186.91,145.4]
[1736683955276,20.0,187.01,186.91,145.4]
[1736683955681,20.0,187.01,186.92,0.80216215]
[1736683955885,21.521,187.04,186.93,0.7143]
[1736683956259,1.521,187.04,186.93,146.1143]
[1736683956494,7.9406,187.08,186.95,6.5017]
[1736683956790,7.9406,187.08,186.95,69.3017]
[1736683957086,20.0,187.05,186.95,69.3017]
[1736683957288,20.0,187.05,186.96,0.80199425]
[1736683957496,1.6569,187.08,186.96,146.20199425]
[1736683957673,1.6569,187.08,186.96,145.4]
[1736683958192,20.0,187.07,186.96,149.94]
[1736683958767,20.0,187.07,186.97,0.801921]
[1736683959066,1.6569,187.08,186.97,0.801921]
[1736683959263,20.0,187.09,186.97,63.601921]
[1736683959483,8.1894,187.13,186.97,146.201921]
[1736683959686,20.0,187.1,186.97,145.4]
[1736683959881,20.0,187.1,186.98,0.80185783]
[1736683961197,8.1894,187.13,187.0,6.5017]
[1736683961198,1.6569,187.13,187.0,6.5017]
[1736683961400,1.6569,187.13,187.02,23.776884]
[1736683961698,1.6569,187.17,187.03,0.80176703]
[1736683961880,20.0,187.14,187.03,0.80176703]
[1736683962081,20.0,187.14,187.02,87.37856933]
[1736683962293,5.0,187.15,187.02,87.37856933]
[1736683962798,20.0,187.14,187.02,87.37856933]
[1736683964314,1.6569,187.17,187.02,169.97856933]
[1736683964590,20.0,187.16,187.02,169.176884]
[1736683965099,1.6569,187.17,187.04,23.776884]
[1736683965399,1.6569,187.17,187.05,0.80156879]
[1736683967992,20.0,187.16,187.05,0.80160358]
[1736683968188,20.0,187.16,187.05,146.20160358]
[1736683968387,20.0,187.16,187.05,145.4]
[1736683968593,21.6569,187.17,187.05,145.4]
[1736683969076,20.0,187.16,187.05,145.4]
[1736683969471,1.6569,187.17,187.05,145.4]
[1736683969472,20.0,187.12,187.05,82.6]
[1736683969675,20.0,187.12,187.03,69.6424]
[1736683973080,20.0,187.11,187.01,87.14]
[1736683973400,20.0,187.07,186.98,69.8614]
[1736683975070,20.0,187.07,186.98,7.0614]
[1736683978694,1.503,187.1,186.98,7.0614]
[1736683978898,20.0,187.07,186.98,7.0614]
[1736683981305,20.0,187.05,186.95,82.6]
[1736683983305,20.0,187.04,186.95,82.6]
[1736683984903,20.0,187.05,186.95,82.6]
[1736683986095,25.0,187.05,186.95,82.6]
[1736683986316,20.0,187.04,186.94,6.3471]
[1736683994094,113.427,187.03,186.9,82.6]
[1736683994314,20.0,187.0,186.9,82.6]
[1736683995494,20.0,186.98,186.9,82.6]
[1736683995716,20.0,186.98,186.85,4.54]
[1736683995918,20.0,186.98,186.85,149.94]
[1736683996603,20.0,186.98,186.86,23.776884]
[1736683997413,1.527,186.97,186.86,23.776884]
[1736683997913,1.527,186.97,186.85,145.4]
[1736684001216,20.0,186.94,186.85,82.6]
[1736684003526,20.0,186.95,186.85,82.6]
[1736684004698,1.527,186.97,186.85,82.6]
[1736684004899,20.0,186.95,186.85,82.6]
[1736684006123,20.0,186.94,186.85,82.6]
[1736684006711,20.0,186.95,186.85,82.6]
[1736684007321,20.0,186.95,186.85,83.4025273]
[1736684008428,20.0,186.95,186.86,23.776884]
[1736684008603,20.0,186.95,186.86,24.57932681]
[1736684009820,20.0,186.95,186.86,25.29362681]
[1736684012151,1.527,186.97,186.86,25.29362681]
[1736684013225,1.527,186.97,186.86,170.69362681]
[1736684013528,21.527,186.97,186.86,169.891184]
[1736684014634,1.527,186.97,186.86,169.891184]
[1736684019112,21.527,186.97,186.86,107.091184]
[1736684020828,21.527,186.97,186.86,82.6]
[1736684022929,26.527,186.97,186.86,82.6]
[1736684025159,108.427,186.97,186.84,68.9935]
[1736684029133,103.427,186.97,186.84,68.9935]
[1736684029339,108.427,186.97,186.84,68.9935]
[1736684030148,103.427,186.97,186.84,68.9935]
[1736684030323,108.427,186.97,186.84,68.9935]
[1736684031351,108.427,186.97,186.84,6.1935]
[1736684032449,106.30092409,186.97,186.84,6.1935]
[1736684033134,101.30092409,186.97,186.84,6.1935]
[1736684035433,102.88392409,186.97,186.84,6.1935]
[1736684037051,102.88392409,186.97,186.84,88.7935]
[1736684037662,102.88392409,186.97,186.84,89.59602057]
[1736684038951,102.88392409,186.97,186.84,88.7935]
[1736684040149,102.88392409,186.97,186.85,23.776884]
[1736684041358,102.88392409,186.97,186.85,24.57935003]
[1736684042959,102.88392409,186.97,186.86,0.12549]
[1736684043155,20.0,186.96,186.88,106.376884]
[1736684044056,1.583,186.97,186.88,106.376884]
[1736684047771,26.6556,186.95,186.88,82.6]
[1736684049178,26.6556,186.95,186.83,82.6]
[1736684054779,1.5282,186.94,186.83,82.6]
[1736684058094,20.0,186.91,186.83,82.6]
[1736684060672,6.6556,186.89,186.77,145.4]
[1736684060871,6.6556,186.89,186.78,23.776884]
[1736684063395,6.6556,186.89,186.78,106.376884]
[1736684063617,6.6556,186.89,186.78,82.6]
[1736684063783,1.5282,186.88,186.78,82.6]
[1736684067017,83.4282,186.88,186.78,82.6]
[1736684069379,83.4282,186.88,186.78,83.40290137]
[1736684069581,83.4282,186.88,186.78,82.6]
[1736684073122,1.5282,186.88,186.78,82.6]
[1736684076207,1.5282,186.88,186.78,83.40282214]
[1736684076414,1.5282,186.88,186.78,82.6]
[1736684077806,1.5282,186.88,186.79,23.776884]
[1736684078313,1.5282,186.88,186.79,24.5796068]
[1736684078684,1.5282,186.88,186.82,102.6]
[1736684078889,1.5282,186.88,186.83,23.776884]
[1736684079390,6.6599,186.93,186.83,106.376884]
[1736684079391,8.1986,186.93,186.83,106.376884]
[1736684079586,8.1986,186.93,186.84,63.72804563]
[1736684079800,1.5387,186.93,186.86,0.12549]
[1736684079992,1.5387,186.93,186.87,23.776884]
[1736684080511,1.5387,186.97,186.89,23.776884]
[1736684084021,1.0387,186.97,186.89,23.776884]
[1736684084518,36.02776691,186.99,186.93,23.776884]
[1736684084913,36.02776691,186.99,186.92,0.12549]
[1736684085115,36.02776691,186.99,186.93,23.776884]
[1736684085431,36.02776691,186.99,186.95,23.776884]
[1736684085802,36.02776691,186.99,186.97,23.776884]
[1736684086919,36.02776691,186.99,186.95,62.8]
[1736684087221,1.5552,187.02,186.96,23.776884]
[1736684091023,1.5552,187.02,186.96,82.6]
[1736684091895,1.5552,187.02,186.96,83.40202854]
[1736684092425,1.5552,187.02,186.97,23.776884]
[1736684092611,1.6162,187.06,186.97,106.376884]
[1736684092922,1.6162,187.06,186.98,0.8019428]
[1736684093108,1.6162,187.06,186.99,23.902374]
[1736684093307,1.6162,187.06,187.01,23.776884]
[1736684095216,1.6162,187.06,187.0,23.776884]
[1736684097114,1.6162,187.06,187.0,106.376884]
[1736684100100,1.6162,187.06,187.0,82.6]
[1736684102118,1.6162,187.06,186.96,82.6]
[1736684102428,6.0704,187.05,186.96,82.6]
[1736684105926,6.0704,187.05,186.91,62.8]
[1736684106108,6.0704,187.05,186.92,0.80218532]
[1736684106314,6.0704,187.05,186.93,23.776884]
[1736684108812,6.0704,187.05,186.92,23.776884]
[1736684109023,1.5103,187.01,186.92,23.776884]
[1736684109317,1.5103,187.01,186.91,23.776884]
[1736684110036,21.5103,187.01,186.9,62.8]
[1736684110213,1.5103,186.99,186.83,204.7834]
[1736684110419,20.0,186.97,186.84,0.8025003]
[1736684110632,20.0,186.97,186.85,23.776884]
[1736684111015,20.0,186.97,186.86,20.0]
[1736684111512,20.0,186.97,186.84,0.8025003]
[1736684111823,20.0,186.97,186.86,20.0]
[1736684112209,20.0,186.97,186.84,0.8025003]
[1736684112210,20.0,186.97,186.85,23.776884]
[1736684112429,1.6659,186.96,186.85,23.776884]
[1736684114432,1.6659,186.96,186.87,23.776884]
[1736684114650,1.6659,186.96,186.89,23.776884]
[1736684116752,1.6659,186.96,186.91,23.776884]
[1736684117131,7.7104,187.0,186.91,106.376884]
[1736684117825,7.7104,187.0,186.94,20.0]
[1736684121546,7.7104,187.0,186.95,23.776884]
[1736684121744,1.5053,187.0,186.95,23.776884]
[1736684121931,81.9,187.1,186.95,23.776884]
[1736684121932,1.5053,187.03,186.97,23.776884]
[1736684123449,6.3306,187.05,186.99,23.776884]
[1736684124326,1.5053,187.07,187.01,23.776884]
[1736684125445,81.9,187.15,186.98,62.8]
[1736684125446,6.5526,187.15,187.03,24.027864]
[1736684125656,6.5526,187.15,187.05,23.776884]
[1736684128257,6.5526,187.15,187.06,0.80160815]
[1736684128430,6.5526,187.15,187.07,23.776884]
[1736684132125,6.5526,187.15,187.09,23.776884]
[1736684134054,6.5526,187.15,187.11,23.776884]
[1736684134837,6.5526,187.15,187.03,62.8]
[1736684135058,6.5526,187.15,187.04,0.80161744]
[1736684135363,6.5526,187.15,187.07,23.776884]
[1736684138355,6.5526,187.15,187.04,62.8]
[1736684138863,6.5526,187.15,187.05,20.0]
[1736684139048,6.5526,187.15,187.04,23.776884]
[1736684139852,6.5526,187.15,187.03,0.80166568]
[1736684139853,1.6241,187.14,187.01,87.12]
[1736684140171,8.1767,187.11,186.98,149.94]
[1736684140367,8.1767,187.11,186.99,0.80185084]
[1736684140768,8.1767,187.11,187.01,20.0]
[1736684143149,8.1767,187.11,187.02,23.776884]
[1736684146777,8.1767,187.11,187.01,20.0]
[1736684149272,8.1767,187.11,186.99,0.80177285]
[1736684149467,1.5807,187.1,186.98,145.4]
[1736684150078,1.5807,187.1,186.99,23.776884]
[1736684151870,1.5807,187.1,187.0,0.80188663]
[1736684152579,1.5807,187.1,187.01,23.776884]
[1736684152746,1.5807,187.1,187.02,0.80175894]
[1736684152951,1.5807,187.1,187.02,20.80175894]
[1736684153275,1.5807,187.1,187.02,20.0]
[1736684155862,1.5807,187.1,187.0,0.80175064]
[1736684156051,1.5807,187.1,187.01,20.0]
[1736684160658,1.5807,187.1,187.01,20.80183346]
[1736684161778,1.5807,187.1,187.02,20.0]
[1736684163277,1.5807,187.1,187.03,24.57862685]
[1736684164658,1.5807,187.1,187.02,20.0]
[1736684165184,1.5807,187.1,187.01,23.776884]
[1736684165753,1.5807,187.1,187.02,20.0]
[1736684167554,1.5807,187.1,187.03,23.776884]
[1736684168573,1.5807,187.1,187.04,0.80172612]
[1736684168770,1.5807,187.1,187.05,23.776884]
[1736684172067,1.5807,187.1,187.07,23.776884]
[1736684173182,7.8868,187.15,187.09,23.776884]
[1736684174361,7.8868,187.15,187.07,20.0]
[1736684175162,7.8868,187.15,187.04,62.8]
[1736684176387,7.8868,187.15,187.05,23.776884]
[1736684177805,7.8868,187.15,187.05,20.0]
[1736684177985,7.8868,187.15,187.03,23.776884]
[1736684178695,7.8868,187.15,187.03,24.57860168]
[1736684180975,7.8868,187.15,187.04,0.37647]
[1736684181175,7.8868,187.15,187.05,0.80154527]
[1736684183797,7.8868,187.15,187.05,24.57842927]
[1736684183976,7.8868,187.15,187.06,23.776884]
[1736684185591,7.8868,187.15,187.04,62.8]
[1736684185975,7.8868,187.15,187.05,23.776884]
[1736684189074,7.8868,187.15,187.05,24.57854208]
[1736684192574,7.8868,187.15,187.05,23.776884]
[1736684192801,1.5119,187.14,187.05,23.776884]
[1736684195886,1.5119,187.14,187.04,23.776884]
[1736684197696,1.5119,187.14,187.03,23.776884]
[1736684199710,1.5119,187.14,187.04,0.37647]
[1736684200406,1.5119,187.14,187.06,23.776884]
[1736684200595,1.5119,187.14,187.06,20.0]
[1736684208010,1.5119,187.14,187.06,20.80157059]
[1736684210292,1.5119,187.14,187.07,23.776884]
[1736684211836,1.5119,187.14,187.07,20.0]
[1736684211993,1.5119,187.14,187.04,145.52549]
[1736684212438,1.5119,187.14,187.05,23.776884]
[1736684214007,1.5516,187.12,186.99,4.52]
[1736684214204,1.5516,187.12,186.99,0.80180618]
[1736684214406,10.0,187.17,186.98,158.34276219]
[1736684214407,1.5516,187.1,186.98,95.54276219]
[1736684214606,1.5516,187.1,187.02,20.0]
[1736684217324,1.5516,187.1,187.03,23.776884]
[1736684217840,1.5516,187.1,187.01,20.0]
[1736684224711,1.5516,187.1,187.02,24.57868637]
[1736684224917,1.5516,187.1,187.06,23.776884]
[1736684227330,1.5516,187.1,187.07,0.80157289]
[1736684227909,1.5516,187.1,187.06,24.5784544]
[1736684229107,1.6189,187.14,187.06,24.5784544]
[1736684229424,1.6189,187.14,187.07,0.12549]
[1736684229625,1.6189,187.14,187.09,23.776884]
[1736684231126,1.6189,187.14,187.06,0.80150016]
[1736684231311,1.6189,187.14,187.06,20.80150016]
[1736684231842,1.6189,187.14,187.08,23.776884]
[1736684233328,1.6189,187.14,187.06,23.776884]
[1736684233527,1.6189,187.14,187.08,23.776884]
[1736684235804,1.6189,187.14,187.06,20.0]
[1736684237015,1.6189,187.14,187.08,20.0]
[1736684238615,1.6189,187.14,187.07,20.0]
[1736684241122,1.6189,187.14,187.08,24.5784683]
[1736684242732,1.6189,187.14,187.09,0.12549]
[1736684244412,1.6189,187.14,187.07,20.0]
[1736684244613,1.6189,187.14,187.07,20.80151053]
[1736684244809,1.6189,187.14,187.07,20.0]
[1736684247644,1.6189,187.14,187.04,82.6]
[1736684248943,6.2304,187.13,187.04,82.6]
[1736684249145,1.6246,187.12,187.04,82.6]
[1736684249718,1.6246,187.12,187.02,23.776884]
[1736684250441,1.6246,187.12,186.98,146.20179855]
[1736684250644,1.6246,187.12,186.98,145.4]
[1736684250818,1.6246,187.12,187.02,23.776884]
[1736684251445,1.6246,187.12,187.0,23.902374]
[1736684251646,1.6246,187.12,187.01,20.0]
[1736684253039,1.6246,187.1,187.01,20.0]
[1736684254740,1.6246,187.1,187.02,23.776884]
[1736684254952,1.6246,187.1,187.02,24.57873295]
[1736684255522,1.6246,187.1,187.02,23.776884]
[1736684256021,1.6246,187.1,187.04,23.776884]
[1736684259260,1.6246,187.1,187.01,165.4]
[1736684259552,1.6246,187.1,187.02,23.776884]
[1736684262653,1.6246,187.1,187.02,24.57867005]
[1736684264239,1.6246,187.1,187.02,23.776884]
[1736684267150,1.6246,187.1,186.99,62.8]
[1736684269326,1.6246,187.1,187.0,23.776884]
[1736684269526,1.6246,187.1,187.02,23.776884]
[1736684270055,1.6246,187.1,187.03,0.80172377]
[1736684270435,1.6246,187.1,187.02,24.57858598]
[1736684271449,1.6246,187.1,187.03,0.12549]
[1736684271650,1.6246,187.1,187.05,23.776884]
[1736684272053,1.6246,187.1,187.03,23.902374]
[1736684272229,1.6246,187.1,187.05,23.776884]
[1736684272951,1.6246,187.1,187.04,20.0]
[1736684274053,1.6246,187.1,187.02,23.776884]
[1736684280166,1.6246,187.1,187.03,20.0]
[1736684280557,1.6246,187.1,187.0,82.6]
[1736684281442,1.6246,187.1,187.0,83.4018503]
[1736684281866,1.6246,187.1,187.01,23.776884]
[1736684282266,1.6246,187.1,187.01,24.5786649]
[1736684284250,1.6246,187.1,187.04,20.0]
[1736684284450,1.6246,187.1,187.05,23.776884]
[1736684284950,1.6246,187.1,187.04,20.0]
[1736684285156,1.6246,187.1,187.03,20.0]
[1736684290461,1.6246,187.1,187.04,24.57863249]
[1736684293371,1.6246,187.1,187.07,20.0]
[1736684294049,1.6246,187.1,187.07,23.776884]
[1736684295350,1.6246,187.1,187.04,20.0]
[1736684297978,1.6246,187.1,187.05,20.0]
[1736684302560,1.6246,187.1,187.0,82.6]
[1736684302862,6.1082,187.09,187.04,20.0]
[1736684303454,6.1082,187.09,187.01,23.776884]
[1736684303686,6.1082,187.09,187.0,82.6]
[1736684303984,1.6043,187.08,187.0,82.6]
[1736684304362,1.6043,187.08,186.98,20.0]
[1736684304670,1.6043,187.08,187.0,20.0]
[1736684305886,1.6043,187.08,187.01,20.0]
[1736684307069,1.6043,187.08,186.97,0.8019478]
[1736684307275,81.9,187.11,186.94,82.6]
[1736684307276,1.6095,187.06,186.94,82.6]
[1736684308085,81.9,187.05,186.93,0.80202342]
[1736684308288,81.9,187.05,186.94,20.0]
[1736684308491,81.9,187.05,186.93,23.776884]
[1736684308660,81.9,187.05,186.92,0.80214283]
[1736684308862,7.9144,187.04,186.92,0.80214283]
[1736684309776,1.6095,187.03,186.9,66.22276219]
[1736684310269,1.6095,187.03,186.91,23.776884]
[1736684310467,1.6095,187.03,186.93,20.0]
[1736684313277,81.9,187.05,186.9,57.8]
[1736684313278,1.6357,187.01,186.9,57.8]
[1736684314388,1.6357,186.99,186.9,57.8]
[1736684315963,83.5357,186.99,186.9,20.0]
[1736684317878,81.9,186.97,186.88,20.0]
[1736684318597,81.9,186.97,186.84,4.52]
[1736684318799,81.9,186.97,186.85,23.776884]
[1736684319094,81.9,186.97,186.88,20.0]
[1736684319587,81.9,186.97,186.88,20.80245848]
[1736684319897,81.9,186.97,186.89,23.776884]
[1736684320613,1.6357,186.98,186.91,23.776884]
[1736684320768,1.6357,186.98,186.93,23.776884]
[1736684321167,1.6357,186.98,186.96,20.0]
[1736684321374,1.6357,187.03,186.97,23.776884]
[1736684323089,1.6357,187.03,186.99,23.776884]
[1736684323880,1.6357,187.08,186.99,23.776884]
[1736684324073,1.6357,187.08,186.99,20.80185876]
[1736684326074,1.6357,187.08,187.05,20.0]
[1736684326292,1.6357,187.08,187.04,23.776884]
[1736684326698,1.6357,187.08,187.04,20.0]
[1736684327283,1.6357,187.08,187.03,23.776884]
[1736684327874,1.6357,187.08,187.03,43.776884]
[1736684328790,1.6357,187.08,187.03,20.0]
[1736684330301,1.6357,187.08,187.02,20.0]
[1736684330876,1.6357,187.08,187.0,20.0]
[1736684331195,1.6357,187.08,187.01,20.0]
[1736684333779,1.6357,187.08,187.03,23.776884]
[1736684335881,1.6357,187.08,187.02,43.776884]
[1736684340210,1.6357,187.08,187.03,0.8017416]
[1736684340516,1.6357,187.08,187.02,44.57854452]
[1736684340817,8.0781,187.13,187.02,44.57854452]
[1736684342007,8.0781,187.13,187.03,0.37647]
[1736684342219,1.503,187.13,187.08,20.0]
[1736684342790,1.503,187.13,187.09,0.80149413]
[1736684343204,1.503,187.13,187.08,0.8014809]
[1736684344393,1.503,187.13,187.08,23.776884]
[1736684345089,1.503,187.13,187.07,20.80149188]
[1736684345291,1.503,187.13,187.07,20.0]
[1736684345489,1.503,187.13,187.07,43.776884]
[1736684346813,1.503,187.13,187.07,20.0]
[1736684351117,6.5325,187.12,187.0,4.52]
[1736684351419,6.5325,187.12,187.03,20.0]
[1736684352613,6.5325,187.12,187.01,23.776884]
[1736684353610,6.5325,187.12,187.04,20.0]
[1736684361323,6.5325,187.12,187.05,23.776884]
[1736684361703,6.5325,187.12,187.04,0.80176375]
[1736684361904,6.5325,187.12,187.02,0.92715846]
[1736684362106,6.5325,187.12,187.03,20.0]
[1736684364428,6.5325,187.12,187.01,20.0]
[1736684364632,6.5325,187.12,187.02,20.0]
[1736684365106,1.6547,187.11,187.02,20.0]
[1736684378439,83.5547,187.11,187.02,20.0]
[1736684389447,81.9,187.09,186.99,0.80184089]
[1736684389620,6.3796,187.08,186.97,8.42276219]
[1736684390350,6.3796,187.08,187.0,20.0]
[1736684391449,1.6263,187.07,186.97,20.0]
[1736684391627,1.6263,187.07,186.98,20.0]
[1736684393828,83.5263,187.07,186.94,149.92]
[1736684394241,83.5263,187.07,186.95,23.776884]
[1736684399459,81.9,187.06,186.95,23.776884]
[1736684400455,81.9,187.06,186.95,24.57896826]
[1736684400752,81.9,187.06,186.95,29.07896826]
[1736684401533,81.9,187.06,186.98,20.0]
[1736684401735,1.6263,187.07,186.99,0.80194196]
[1736684403657,1.6273,187.11,187.04,23.776884]
[1736684403875,1.6273,187.11,187.04,24.57854593]
[1736684404458,1.6273,187.11,187.04,23.776884]
[1736684404636,1.6273,187.11,187.03,20.0]
[1736684408763,81.9,187.1,186.96,82.6]
[1736684408942,81.9,187.1,186.97,0.80187105]
[1736684409264,81.9,187.1,187.0,23.776884]
[1736684409563,81.9,187.1,186.99,20.0]
[1736684410759,81.9,187.08,187.01,20.0]
[1736684410943,1.6091,187.07,187.01,20.0]
[1736684412169,1.6091,187.07,186.95,4.52]
[1736684412339,1.6091,187.07,186.95,5.32205184]
[1736684412550,81.9,187.06,186.97,20.0]
[1736684413354,81.9,187.06,186.96,23.776884]
[1736684414963,81.9,187.06,186.97,20.0]
[1736684415266,7.6307,187.05,186.97,20.0]
[1736684416955,7.6307,187.05,186.98,24.5788492]
[1736684417589,7.6307,187.05,186.98,23.776884]
[1736684419670,7.6307,187.05,186.97,20.0]
[1736684423473,7.6307,187.05,186.96,20.0]
[1736684426675,7.6307,187.05,186.95,43.776884]
[1736684427982,81.9,187.04,186.96,20.0]
[1736684429553,1.5569,187.01,186.93,20.0]
[1736684430987,1.5569,187.01,186.95,20.0]
[1736684431181,1.5569,187.01,186.97,20.0]
[1736684432455,1.5569,187.01,186.94,24.57898213]
[1736684432659,1.5569,187.01,186.97,20.0]
[1736684433381,6.094,187.05,186.98,24.57888052]
[1736684433552,1.5569,187.06,187.01,20.0]
[1736684434450,1.5569,187.06,187.02,23.776884]
[1736684437283,1.5569,187.06,187.01,20.0]
[1736684437284,1.5569,187.06,186.99,20.0]
[1736684437598,1.5569,187.06,187.0,23.776884]
[1736684441296,1.5569,187.06,187.03,20.0]
[1736684441704,6.1312,187.1,187.04,23.776884]
[1736684443094,1.6242,187.11,187.07,20.0]
[1736684443387,6.2232,187.15,187.08,23.776884]
[1736684445104,6.2232,187.15,187.04,0.80152972]
[1736684445298,6.2232,187.15,187.06,20.0]
[1736684447372,81.9,187.14,187.06,20.0]
[1736684452497,81.9,187.13,187.01,0.92719973]
[1736684452671,83.414,187.13,187.01,4.64549]
[1736684452877,83.414,187.13,187.05,20.0]
[1736684464512,83.414,187.13,187.03,20.0]
[1736684465819,83.414,187.13,187.04,0.80167709]
[1736684469420,83.414,187.13,187.04,20.80167709]
[1736684474337,1.514,187.13,187.04,20.80167709]
[1736684482830,1.514,187.13,187.04,20.0]
[1736684483023,1.514,187.13,187.05,20.0]
[1736684483813,1.514,187.13,187.04,20.0]
[1736684484225,81.9,187.12,187.02,4.5]
[1736684485335,81.9,187.12,187.02,5.30177564]
[1736684488924,81.9,187.12,187.05,20.0]
[1736684490438,81.9,187.12,187.03,20.0]
[1736684491711,81.9,187.12,187.05,20.0]
[1736684491912,83.4371,187.1,187.0,0.80175718]
[1736684492120,83.4371,187.1,186.99,8.54825219]
[1736684492121,83.4371,187.1,186.99,12.92276219]
[1736684492310,1.5371,187.09,186.99,12.92276219]
[1736684492511,1.5371,187.09,187.02,20.0]
[1736684497535,1.5371,187.09,187.02,20.80178297]
[1736684501240,1.5371,187.09,187.03,24.027864]
[1736684504119,1.5371,187.09,187.02,20.80178297]
[1736684508020,1.5371,187.09,187.03,20.0]
[1736684508720,1.5371,187.09,187.03,43.776884]
[1736684508954,1.5371,187.09,187.04,0.80167238]
[1736684515745,1.5371,187.09,187.04,2.93426301]
[1736684517160,1.5371,187.09,187.04,0.80167238]
[1736684523856,1.5371,187.09,187.04,20.0]
[1736684524331,1.5371,187.09,187.05,20.0]
[1736684527556,1.5371,187.09,187.02,4.5]
[1736684528062,1.5371,187.09,187.04,20.0]
[1736684529962,1.5371,187.09,187.05,20.0]
[1736684530359,1.5371,187.09,187.05,20.80175701]
[1736684537161,6.0697,187.11,187.09,20.0]
[1736684537368,1.5271,187.14,187.09,20.0]
[1736684537863,1.5271,187.14,187.04,82.72549]
[1736684538072,1.5271,187.14,187.04,83.52713635]
[1736684538370,1.5271,187.14,187.07,20.0]
[1736684548278,1.5271,187.14,187.04,82.6]
[1736684549280,81.9,187.13,187.03,24.5]
[1736684549575,81.9,187.13,187.04,20.0]